fUSD/lending_fUSD_20260307
["ID","MTS","AMOUNT","RATE_DAILY","PERIOD"]
[407925308,1772916631993,-500.0,0.00015572,2]
[407925309,1772916632002,-500.0,0.00015572,2]
[407925310,1772916632013,-500.0,0.00015572,2]
[407925311,1772916632023,-604.81659273,0.00015572,2]
[407925312,1772916632035,-151.0,0.00015572,2]
[407925313,1772916632047,-151.0,0.00015572,2]
[407925314,1772916632057,-151.0,0.00015572,2]
[407925315,1772916632068,-151.0,0.00015572,2]
[407925316,1772916632079,-151.0,0.00015572,2]
[407925317,1772916632089,-151.0,0.00015572,2]
[407925318,1772916632099,-151.0,0.00015572,2]
[407925319,1772916632109,-151.0,0.00015572,2]
[407925320,1772916632119,-151.0,0.00015572,2]
[407925321,1772916632131,-151.0,0.00015572,2]
[407925322,1772916632146,-151.0,0.00015572,2]
[407925323,1772916632157,-151.0,0.00015572,2]
[407925324,1772916632168,-151.0,0.00015572,2]
[407925325,1772916632178,-151.0,0.00015572,2]
[407925326,1772916632188,-151.0,0.00015572,2]
[407925327,1772916632198,-151.0,0.00015572,2]
[407925328,1772916632208,-151.0,0.00015572,2]
[407925329,1772916632219,-151.0,0.00015572,2]
[407925330,1772916632229,-151.0,0.00015572,2]
[407925331,1772916632239,-151.0,0.00015572,2]
[407925332,1772916632249,-151.0,0.00015572,2]
[407925333,1772916632261,-312.50806812,0.00015573,2]
[407925334,1772916632272,-1000.0,0.00015591,2]
[407925335,1772916632282,-6630.0852,0.00015591,2]
[407925336,1772916632293,-500.0,0.0001569,2]
[407925337,1772916632302,-500.0,0.0001569,2]
[407925338,1772916632312,-500.0,0.0001569,2]
[407925339,1772916632322,-500.0,0.0001569,2]
[407925340,1772916632332,-500.0,0.0001569,2]
[407925341,1772916632342,-500.0,0.0001569,2]
[407925342,1772916632352,-500.0,0.0001569,2]
[407925343,1772916632362,-20893.31,0.00015799,2]
[407925344,1772916632372,-342.82895016,0.0001612,2]
[407925345,1772916632382,-292.18,0.00016209,2]
[407925346,1772916632392,-169.3,0.00016432,2]
[407925347,1772916632401,-346.0,0.00016644,2]
[407925348,1772916632413,-207.89,0.00016881,2]
[407925349,1772916632422,-503.0,0.00017,2]
[407925350,1772916632432,-200.0,0.00017168,2]
[407925351,1772916632443,-500.0,0.00017275,2]
[407925352,1772916632453,-1604.07,0.0001735,2]
[407925353,1772916632463,-200.0,0.00018027,2]
[407925354,1772916632473,-1600.0,0.00018082,7]
[407925355,1772916632483,-700.0,0.00018082,7]
[407925356,1772916632493,-1600.0,0.00018082,7]
[407925357,1772916632504,-500.0,0.00018236,2]
[407925358,1772916632514,-443.75841883,0.00018236,2]
[407925359,1772916632524,-500.0,0.00018236,2]
[407925360,1772916632534,-500.0,0.00018236,2]
[407925361,1772916632544,-500.0,0.00018236,2]
[407925362,1772916632554,-500.0,0.00018236,2]
[407925363,1772916632565,-500.0,0.00018236,2]
[407925364,1772916632574,-500.0,0.00018236,2]
[407925365,1772916632583,-500.0,0.00018236,2]
[407925366,1772916632593,-500.0,0.00018236,2]
[407925367,1772916632603,-47668.75,0.00018238,2]
[407925368,1772916632613,-2500.0,0.00018256,2]
[407925369,1772916632624,-70111.63,0.00018356,2]
[407925370,1772916632634,-1671.82,0.00018532,2]
[407925371,1772916632646,-4489.93901135,0.00018658,2]
[407925372,1772916632655,-4489.93901133,0.00018835,2]
[407925373,1772916632666,-250.0,0.00018999,2]
[407925374,1772916632677,-721.12765535,0.00018999,2]
[407925375,1772916632688,-225.18697533,0.00018999,2]
[407925376,1772916632698,-250.0,0.00018999,2]
[407925377,1772916632709,-250.0,0.00018999,2]
[407925378,1772916632719,-2500.0,0.00018999,2]
[407925379,1772916632730,-2500.0,0.00018999,2]
[407925380,1772916632740,-500.0,0.00018999,2]
[407925381,1772916632750,-500.0,0.00018999,2]
[407925382,1772916632761,-578.20924308,0.00018999,2]
[407925383,1772916632771,-151.0,0.00018999,2]
[407925384,1772916632782,-693.3919763,0.00018999,2]
[407925385,1772916632791,-250.0,0.00018999,2]
[407925386,1772916632803,-743.50770149,0.00018999,2]
[407925387,1772916632812,-250.0,0.00018999,2]
[407925388,1772916632822,-250.0,0.00018999,2]
[407925389,1772916632832,-250.0,0.00018999,2]
[407925390,1772916632841,-359.0,0.00018999,2]
[407925391,1772916632851,-174.61919141,0.00018999,2]
[407925392,1772916632862,-200.0,0.00018999,2]
[407925393,1772916632872,-500.0,0.00018999,2]
[407925394,1772916632883,-500.0,0.00018999,2]
[407925395,1772916632893,-500.0,0.00018999,2]
[407925396,1772916632902,-500.0,0.00018999,2]
[407925397,1772916632912,-500.0,0.00018999,2]
[407925398,1772916632922,-500.0,0.00018999,2]
[407925399,1772916632932,-500.0,0.00018999,2]
[407925400,1772916632941,-500.0,0.00018999,2]
[407925401,1772916632951,-262.90206542,0.00018999,2]
[407925402,1772916632961,-500.0,0.00018999,2]
[407925403,1772916632970,-500.0,0.00018999,2]
[407925404,1772916632980,-500.0,0.00018999,2]
[407925405,1772916632989,-500.0,0.00019,5]
[407925406,1772916632999,-503.4917169,0.00019,2]
[407925407,1772916633008,-785.82331,0.00019,2]
[407925408,1772916633018,-4489.93901133,0.00019013,2]
[407925409,1772916633028,-2802.0,0.0001904,2]
[407925410,1772916633037,-151.0,0.00019054,2]
[407925411,1772916633047,-719.04747942,0.00019054,2]
[407925412,1772916633056,-280.65940737,0.00019109,2]
[407925413,1772916633065,-745.65223616,0.00019109,2]
[407925414,1772916633075,-773.2413689,0.00019164,2]
[407925415,1772916633084,-1600.0,0.00019178,7]
[407925416,1772916633094,-700.0,0.00019178,7]
[407925417,1772916633103,-1600.0,0.00019178,7]
[407925418,1772916633115,-1297.97865191,0.0001919,2]
[407925419,1772916633129,-3191.96035942,0.0001919,2]
[407925420,1772916633139,-801.85129955,0.00019219,2]
[407925421,1772916633148,-700.0,0.00019235,2]
[407925422,1772916633158,-500.0,0.00019247,2]
[407925423,1772916633167,-831.51979763,0.00019274,2]
[407925424,1772916633177,-862.28603014,0.00019329,2]
[407925425,1772916633186,-2804.0,0.0001936,2]
[407925426,1772916633197,-4489.93901133,0.00019368,2]
[407925427,1772916633207,-894.19061326,0.00019384,2]
[407925428,1772916633217,-1167.73441744,0.000194,2]
[407925429,1772916633229,-844.26558256,0.000194,2]
[407925430,1772916633239,-503.0,0.00019423,4]
[407925431,1772916633248,-927.27566595,0.00019439,2]
[407925432,1772916633259,-961.58486559,0.00019494,2]
[407925433,1772916633269,-2000.0,0.000195,2]
[407925434,1772916633279,-350.0,0.00019523,2]
[407925435,1772916633290,-500.0,0.00019535,2]
[407925436,1772916633300,-150.0,0.00019535,2]
[407925437,1772916633310,-500.0,0.00019535,2]
[407925438,1772916633320,-150.0,0.00019535,2]
[407925439,1772916633330,-150.0,0.00019535,2]
[407925440,1772916633340,-150.0,0.00019535,2]
[407925441,1772916633349,-150.0,0.00019535,2]
[407925442,1772916633359,-250.0,0.00019535,2]
[407925443,1772916633368,-150.0,0.00019535,2]
[407925444,1772916633378,-500.0,0.00019535,2]
[407925445,1772916633387,-150.0,0.00019535,2]
[407925446,1772916633396,-1098.25851484,0.00019545,2]
[407925447,1772916633407,-887.77170059,0.00019545,2]
[407925448,1772916633418,-1500.0,0.00019545,2]
[407925449,1772916633429,-1003.9087959,0.00019545,2]
[407925450,1772916633439,-500.0,0.00019547,2]
[407925451,1772916633448,-300.0,0.00019547,2]
[407925452,1772916633458,-997.16350561,0.00019549,2]
[407925453,1772916633467,-500.0,0.0001959,2]
[407925454,1772916633477,-150.0,0.0001959,2]
[407925455,1772916633486,-500.0,0.0001959,2]
[407925456,1772916633496,-150.0,0.0001959,2]
[407925457,1772916633505,-200.0,0.0001959,2]
[407925458,1772916633515,-150.0,0.0001959,2]
[407925459,1772916633524,-500.0,0.0001959,2]
[407925460,1772916633533,-200.0,0.0001959,2]
[407925461,1772916633543,-194.13,0.000196,3]
[407925462,1772916633552,-1201.00066659,0.000196,2]
[407925463,1772916633563,-500.0,0.00019645,2]
[407925464,1772916633574,-77.9970319,0.00019645,2]
[407925465,1772916633586,-122.0029681,0.00019645,2]
[407925466,1772916633596,-500.0,0.00019645,2]
[407925467,1772916633606,-200.0,0.00019645,2]
[407925468,1772916633616,-150.0,0.00019645,2]
[407925469,1772916633625,-311.15557748,0.00019645,2]
[407925473,1772916637617,-5734.54,0.00018228,2]
[407925474,1772916637627,-188.84442252,0.00019645,2]
[407925475,1772916637637,-2438.112,0.00019699,2]
[407925476,1772916637650,-165.641,0.00019699,2]
[407925477,1772916637659,-500.0,0.00019699,2]
[407925478,1772916637669,-500.0,0.00019699,2]
[407925479,1772916637679,-225.29398025,0.00019699,2]
[407925480,1772916637689,-4489.93901133,0.00019723,2]
[407925481,1772916637700,-890.8,0.00019727,2]
[407925482,1772916637711,-500.0,0.00019754,2]
[407925483,1772916637724,-459.80865041,0.00019754,2]
[407925484,1772916637735,-427.69,0.0001979,2]
[407925485,1772916637745,-5596.3032268,0.000198,10]
[407925486,1772916637755,-500.0,0.00019809,2]
[407925487,1772916637766,-500.0,0.00019821,2]
[407925488,1772916637776,-500.0,0.00019821,2]
[407925489,1772916637787,-500.0,0.00019827,2]
[407925490,1772916637797,-500.0,0.00019827,2]
[407925491,1772916637807,-500.0,0.00019827,2]
[407925492,1772916637816,-200.0,0.0001984,2]
[407925493,1772916637825,-5000.0,0.00019854,2]
[407925494,1772916637835,-500.0,0.00019864,2]
[407925495,1772916637845,-151.0,0.00019871,2]
[407925496,1772916637856,-500.0,0.00019872,2]
[407925497,1772916637867,-500.0,0.00019872,2]
[407925498,1772916637877,-4719.56738539,0.00019895,2]
[407925499,1772916637887,-151.0,0.00019897,2]
[407925500,1772916637896,-10000.0,0.000199,2]
[407925501,1772916637906,-1505.21619488,0.000199,2]
[407925502,1772916637915,-4719.56738539,0.000199,2]
[407925503,1772916637927,-218.8354796,0.000199,2]
[407925504,1772916637936,-4489.93901133,0.000199,2]
[407925506,1772916637945,-3286.43166693,0.000199,2]
[407925507,1772916637954,-3544.9676887,0.000199,2]
[407925509,1772916637963,-500.0,0.00019919,2]
[407925511,1772916637973,-151.0,0.00019936,2]
[407925513,1772916637983,-3945.50289647,0.00019943,2]
[407925516,1772916637995,-355.7868346,0.00019943,2]
[407925518,1772916638006,-1433.25026893,0.00019943,2]
[407925520,1772916638015,-648.32877547,0.00019947,2]
[407925524,1772916638046,-374.15950572,0.00019947,2]
[407925550,1772916640157,-348.985703,0.00019947,2]
[407925551,1772916640324,-177.52601581,0.00019947,2]
[407925552,1772916640334,-500.0,0.00019947,2]
[407925553,1772916640344,-500.0,0.00019947,2]
[407925554,1772916640355,-500.0,0.00019947,2]
[407925555,1772916640364,-500.0,0.00019947,2]
[407925556,1772916640374,-500.0,0.00019952,2]
[407925557,1772916640385,-500.0,0.00019952,2]
[407925558,1772916640397,-3706.61398419,0.00019953,2]
[407925559,1772916640414,-2687.58630183,0.00019953,2]
[407925561,1772916642672,-261.98000005,0.000199,2]
[407925562,1772916642834,-99.69317767,0.000199,2]
[407925563,1772916642844,-300.50682233,0.00019953,2]
[407925564,1772916642890,-266.80573344,0.00019953,2]
[407925565,1772916642901,-127671.50526428,0.00019953,2]
[407925566,1772916642912,-9789.46025393,0.00019953,2]
[407925567,1772916642923,-644.99076248,0.00019953,2]
[407925641,1772916646352,-2874.92898747,0.00019953,2]
[407925642,1772916646413,-2826.01476329,0.00019953,2]
[407925643,1772916646425,-3545.88093274,0.00019953,2]
[407925644,1772916646434,-500.0,0.00019953,2]
[407925645,1772916646444,-232.4537181,0.00019953,2]
[407925646,1772916646454,-500.0,0.00019953,2]
[407925647,1772916646463,-261.98624044,0.00019953,2]
[407925649,1772916646472,-553.53036066,0.00019953,2]
[407925650,1772916646481,-500.0,0.00019953,2]
[407925651,1772916646490,-150.0,0.00019953,2]
[407925652,1772916646499,-500.0,0.00019953,2]
[407925654,1772916646508,-6436.9870704,0.00019954,2]
[407925656,1772916646518,-31691.4445786,0.00019954,2]
[407925658,1772916646527,-9192.44737684,0.00019954,2]
[407925686,1772917420453,160.35,8.593e-05,2]
[407925687,1772917606116,-189.3502,0.000129,2]
[407925688,1772917606141,-6.18292279,0.000147,2]
[407925699,1772917831781,-250.0,0.00015465,2]
[407925700,1772917831792,-1235.33,0.00015465,2]
[407925701,1772917831802,-5000.00604278,0.000162,5]
[407925702,1772917831811,-166.49,0.00016712,2]
[407925703,1772917831820,-5622.02504019,0.000169,3]
[407925704,1772917831829,-2500.0,0.000169,2]
[407925706,1772917831840,-8303.34927385,0.000169,2]
[407925707,1772917831849,-500.0,0.00016999,2]
[407925709,1772917831859,-466.73355845,0.00016999,2]
[407925711,1772917831869,-500.0,0.00016999,2]
[407925712,1772917831878,-20076.80633892,0.00017,2]
[407925713,1772917831890,-99976.34245353,0.00017,2]
[407925732,1772917837834,-3490.23611741,0.000142,2]
[407925733,1772917837847,-2603.83148825,0.000142,2]
[407925734,1772917837858,-1253.93239434,0.000142,2]
[407925735,1772917837869,-215.04341846,0.000146,3]
[407925736,1772917837888,-4241.59355284,0.000146,3]
[407925737,1772917837946,-1075.3630287,0.000146,3]
[407925738,1772917837955,-5532.0,0.000151,5]
[407925739,1772917837964,-2500.0,0.000169,2]
[407925740,1772917837974,-57986.93987908,0.00017,2]
[407925741,1772917837984,-503.0,0.00017,2]
[407925742,1772917837996,-45569.49115023,0.0001711,2]
[407925743,1772917838005,-500.0,0.00017173,2]
[407925744,1772917838014,-8303.34927379,0.00017233,2]
[407925745,1772917838023,-8303.34927379,0.00017567,2]
[407925746,1772917838034,-150.0,0.00017787,2]
[407925747,1772917838043,-258.181067,0.00017789,2]
[407925748,1772917838052,-161.371085,0.00017844,2]
[407925750,1772917838061,-3240.0,0.00017864,2]
[407925752,1772917838070,-8303.34927379,0.000179,2]
[407925753,1772917838079,-1197.17893377,0.00018,2]
[407925754,1772917838088,-1500.0,0.00018069,2]
[407925755,1772917838097,-700.0,0.00018082,7]
[407925756,1772917838107,-1500.0,0.00018082,7]
[407925757,1772917838116,-1500.0,0.00018082,7]
[407925758,1772917838125,-1786.67976777,0.000181,2]
[407925759,1772917838134,-1000.0,0.00018138,2]
[407925760,1772917838143,-3295.03029063,0.0001821,2]
[407925762,1772917838152,-8303.34927379,0.00018233,2]
[407925764,1772917838162,-2000.0,0.0001827,2]
[407925766,1772917838171,-500.0,0.00018355,2]
[407925768,1772917838180,-200.0,0.00018374,2]
[407925770,1772917838188,-8303.34927379,0.00018567,2]
[407925772,1772917838197,-150.0,0.00018602,2]
[407925773,1772917838206,-200.0,0.00018666,2]
[407925774,1772917838215,-1167.99,0.00018686,2]
[407925775,1772917838225,-922.0,0.00018859,2]
[407925776,1772917838234,-1212.0,0.00018859,2]
[407925777,1772917838243,-8303.34927379,0.000189,2]
[407925778,1772917838252,-166.72,0.00018935,2]
[407925779,1772917838261,-500.0,0.00018952,2]
[407925780,1772917838270,-693.3919763,0.00018992,2]
[407925781,1772917838279,-693.3919763,0.00018992,2]
[407925782,1772917838289,-174.61919141,0.00018992,2]
[407925783,1772917838298,-827.50680267,0.00018992,2]
[407925784,1772917838307,-1132.39420957,0.00018999,2]
[407925785,1772917838316,-938.08263821,0.00018999,2]
[407925786,1772917838325,-1483.42040625,0.00018999,2]
[407925787,1772917838334,-1200.0,0.00019,6]
[407925788,1772917838343,-719.04747942,0.00019047,2]
[407925789,1772917838352,-151.0,0.00019097,2]
[407925790,1772917838361,-1226.94360778,0.000191,2]
[407925791,1772917838370,-2400.0,0.000191,6]
[407925792,1772917838380,-745.65223616,0.00019102,2]
[407925793,1772917838389,-773.2413689,0.00019157,2]
[407925794,1772917838398,-700.0,0.00019178,7]
[407925795,1772917838407,-1500.0,0.00019178,7]
[407925796,1772917838416,-1500.0,0.00019178,7]
[407925797,1772917838425,-3453.83,0.00019178,30]
[407925798,1772917838434,-2000.0,0.000192,2]
[407925799,1772917838444,-3700.0,0.000192,7]
[407925800,1772917838453,-801.85129955,0.00019212,2]
[407925801,1772917838463,-8303.34927379,0.00019233,2]
[407925802,1772917838473,-500.0,0.00019247,2]
[407925803,1772917838482,-500.0,0.00019247,2]
[407925804,1772917838491,-831.51979763,0.00019267,2]
[407925805,1772917838501,-4900.0,0.000193,7]
[407925806,1772917838510,-862.28603014,0.00019322,2]
[407925807,1772917838520,-894.19061326,0.00019377,2]
[407925808,1772917838529,-323.47,0.00019379,14]
[407925809,1772917838538,-4887.62231036,0.00019387,2]
[407925810,1772917838547,-6200.0,0.000194,7]
[407925811,1772917838556,-1402.20036017,0.00019423,2]
[407925812,1772917838565,-5000.0,0.00019423,2]
[407925813,1772917838575,-927.27566595,0.00019432,2]
[407925814,1772917838584,-4887.62231036,0.00019444,2]
[407925815,1772917838593,-5991.0,0.0001947,2]
[407925816,1772917838603,-2460.0,0.0001947,2]
[407925817,1772917838613,-1567.32,0.00019479,2]
[407925818,1772917838622,-961.58486559,0.00019487,2]
[407925819,1772917838631,-1200.0,0.000195,7]
[407925820,1772917838641,-4887.62231036,0.00019501,2]
[407925821,1772917838650,-37212.0,0.00019507,2]
[407925822,1772917838659,-151.0,0.00019511,2]
[407925823,1772917838669,-500.0,0.00019511,2]
[407925824,1772917838678,-151.0,0.00019511,2]
[407925825,1772917838687,-151.0,0.00019511,2]
[407925826,1772917838697,-151.0,0.00019511,2]
[407925827,1772917838706,-151.0,0.00019511,2]
[407925828,1772917838716,-163.6216585,0.00019511,2]
[407925829,1772917838726,-500.0,0.00019511,2]
[407925830,1772917838735,-500.0,0.00019511,2]
[407925831,1772917838745,-500.0,0.00019511,2]
[407925832,1772917838755,-500.0,0.00019511,2]
[407925833,1772917838764,-500.0,0.00019511,2]
[407925834,1772917838773,-500.0,0.00019511,2]
[407925835,1772917838782,-500.0,0.00019511,2]
[407925836,1772917838792,-500.0,0.00019511,2]
[407925837,1772917838802,-500.0,0.00019511,2]
[407925838,1772917838811,-500.0,0.00019511,2]
[407925839,1772917838820,-500.0,0.00019511,2]
[407925840,1772917838830,-500.0,0.00019511,2]
[407925841,1772917838839,-220.36614211,0.00019513,2]
[407925842,1772917838850,-1402.20036017,0.00019518,2]
[407925843,1772917838860,-503.0,0.0001952,4]
[407925844,1772917838869,-151.0,0.0001952,2]
[407925845,1772917838879,-150.0,0.00019522,2]
[407925846,1772917838888,-183.39036831,0.00019522,2]
[407925847,1772917838898,-162.71760267,0.00019522,2]
[407925848,1772917838907,-500.0,0.00019522,2]
[407925849,1772917838916,-237.47125246,0.00019522,2]
[407925850,1772917838925,-2582.0,0.00019523,2]
[407925851,1772917838935,-61829.88963857,0.00019523,2]
[407925852,1772917840161,-1958.3830322,0.00019523,2]
[407925853,1772917840271,-414.0,0.0001947,2]
[407925854,1772917840280,-105.56113632,0.00019523,2]
[407925855,1772917840291,-5186.96950047,0.00019523,2]
[407925856,1772917840435,-26823.58278638,0.00019523,2]
[407925857,1772917840447,-282500.15873245,0.00019523,2]
[407925877,1772917845738,-284.25888,0.00019523,2]
[407925885,1772917845850,-3932.39999992,0.00019523,2]
[407925906,1772918802530,-198.994911,0.0001309,2]
[407925914,1772919031994,-253.83271447,0.00013088,2]
[407925915,1772919032052,-46.16728553,0.00013088,2]
[407925916,1772919032062,-1200.0,0.00013088,2]
[407925917,1772919032075,-32679.95065233,0.00013089,2]
[407925918,1772919032084,-19801.005089,0.0001309,2]
[407925919,1772919032094,-168.02,0.00013091,2]
[407925920,1772919032103,-420.0,0.00014352,2]
[407925921,1772919032114,-1680.0,0.00014397,2]
[407925922,1772919032124,-587.0,0.00015738,2]
[407925923,1772919032134,-500.0,0.00015753,2]
[407925924,1772919032145,-166.66,0.00015847,2]
[407925925,1772919032155,-166.66,0.00016181,2]
[407925926,1772919032165,-550.0,0.00016183,2]
[407925927,1772919032176,-3845.83,0.00016184,2]
[407925928,1772919032185,-166.47,0.00016267,2]
[407925929,1772919032195,-200.0,0.00016313,2]
[407925930,1772919032204,-20000.0,0.00016333,2]
[407925931,1772919032213,-835.91,0.00016381,2]
[407925933,1772919032223,-166.66,0.00016514,2]
[407925935,1772919032232,-166.66,0.00016848,2]
[407925937,1772919032242,-9235.00670728,0.00016897,2]
[407925939,1772919032254,-14181.32383649,0.00016897,2]
[407925941,1772919032263,-1000.0,0.000169,2]
[407925943,1772919032275,-1977.67132423,0.000169,2]
[407925945,1772919032285,-7641.90928455,0.00016909,2]
[407925947,1772919032295,-4187.02308925,0.00016909,2]
[407925950,1772919032306,-19813.10339487,0.00016909,2]
[407925952,1772919032318,-51666.70201588,0.00016909,2]
[407925954,1772919032327,-23258.72593472,0.00016909,2]
[407925957,1772919038209,-2336.66816214,0.00016909,2]
[407925963,1772919040418,-7310.82560314,0.00016909,2]
[407925964,1772919040432,-2500.0,0.00016909,2]
[407925965,1772919040443,-151.0,0.00016999,2]
[407925966,1772919040454,-151.0,0.00016999,2]
[407925967,1772919040465,-151.0,0.00016999,2]
[407925968,1772919040476,-151.0,0.00016999,2]
[407925969,1772919040486,-151.0,0.00016999,2]
[407925970,1772919040495,-151.0,0.00016999,2]
[407925971,1772919040505,-200.0,0.00016999,2]
[407925972,1772919040519,-151.0,0.00016999,2]
[407925973,1772919040529,-151.0,0.00016999,2]
[407925974,1772919040539,-151.0,0.00016999,2]
[407925975,1772919040548,-151.0,0.00016999,2]
[407925976,1772919040558,-151.0,0.00016999,2]
[407925977,1772919040568,-151.0,0.00016999,2]
[407925978,1772919040577,-151.0,0.00016999,2]
[407925979,1772919040587,-151.0,0.00016999,2]
[407925980,1772919040597,-151.0,0.00016999,2]
[407925981,1772919040607,-151.0,0.00016999,2]
[407925982,1772919040616,-151.0,0.00016999,2]
[407925983,1772919040626,-151.0,0.00016999,2]
[407925984,1772919040636,-151.0,0.00016999,2]
[407925985,1772919040645,-151.0,0.00016999,2]
[407925986,1772919040655,-151.0,0.00016999,2]
[407925987,1772919040664,-151.0,0.00016999,2]
[407925988,1772919040674,-503.0,0.00017,2]
[407925989,1772919040684,-151.0,0.00017006,2]
[407925990,1772919040694,-151.0,0.00017006,2]
[407925991,1772919040704,-500.0,0.00017008,2]
[407925992,1772919040717,-500.0,0.00017008,2]
[407925993,1772919040727,-500.0,0.00017008,2]
[407925994,1772919040737,-500.0,0.00017008,2]
[407925995,1772919040746,-500.0,0.00017008,2]
[407925996,1772919040756,-500.0,0.00017008,2]
[407925997,1772919040766,-500.0,0.00017008,2]
[407925998,1772919040775,-500.0,0.00017008,2]
[407925999,1772919040786,-500.0,0.00017008,2]
[407926000,1772919040795,-500.0,0.00017008,2]
[407926001,1772919040805,-400.0,0.00017008,2]
[407926002,1772919040814,-500.0,0.00017008,2]
[407926003,1772919040824,-500.0,0.00017008,2]
[407926004,1772919040833,-500.0,0.00017008,2]
[407926005,1772919040843,-236.80810791,0.00017008,2]
[407926006,1772919040853,-538.9228513,0.00017008,2]
[407926007,1772919040863,-1247.90739004,0.00017009,2]
[407926008,1772919040872,-11229.28857116,0.00017009,2]
[407926009,1772919040882,-285746.7345,0.00017009,2]
[407926010,1772919040892,-259.0,0.0001709,2]
[407926011,1772919040902,-500.0,0.00017109,2]
[407926012,1772919040916,-500.0,0.00017109,2]
[407926013,1772919040926,-500.0,0.00017109,2]
[407926014,1772919040935,-500.0,0.00017109,2]
[407926015,1772919040945,-166.66,0.00017181,2]
[407926016,1772919040955,-6324.0,0.0001721,2]
[407926017,1772919040965,-7641.90928448,0.00017241,2]
[407926018,1772919040975,-823.0,0.00017258,2]
[407926019,1772919040984,-826.0,0.00017299,2]
[407926020,1772919040994,-11229.28857111,0.0001733,2]
[407926021,1772919041003,-236.967663,0.00017361,2]
[407926022,1772919041013,-166.66,0.00017406,2]
[407926023,1772919041023,-1247.90739004,0.00017422,2]
[407926024,1772919041033,-166.66,0.00017515,2]
[407926026,1772919041042,-445.4,0.00017551,2]
[407926028,1772919041052,-7641.90928448,0.00017574,2]
[407926031,1772919041062,-150.0,0.00017641,2]
[407926033,1772919041072,-244.946105,0.00017642,2]
[407926034,1772919041081,-11229.28857111,0.00017651,2]
[407926035,1772919041091,-800.0,0.00017808,2]
[407926036,1772919041104,-1247.90739004,0.00017835,2]
[407926037,1772919041114,-7641.90928448,0.00017906,2]
[407926038,1772919041124,-11229.28857111,0.00017973,2]
[407926040,1772919041135,-166.66,0.00017981,2]
[407926042,1772919041144,-199.8,0.00018,4]
[407926044,1772919041154,-1700.0,0.00018082,7]
[407926046,1772919041163,-700.0,0.00018082,7]
[407926047,1772919041173,-1700.0,0.00018082,7]
[407926048,1772919041182,-548.75345228,0.000181,2]
[407926049,1772919041191,-500.0,0.000181,2]
[407926050,1772919041201,-1600.0,0.00018184,2]
[407926051,1772919041212,-7641.90928448,0.00018238,2]
[407926052,1772919041221,-1247.90739004,0.00018248,2]
[407926053,1772919041236,-11229.28857111,0.00018294,2]
[407926054,1772919041246,-1038.3,0.00018318,2]
[407926055,1772919041255,-477.12,0.0001833,2]
[407926056,1772919041265,-166.66,0.00018555,2]
[407926057,1772919041274,-7641.90928448,0.00018571,2]
[407926058,1772919041284,-11229.28857111,0.00018615,2]
[407926059,1772919041293,-1000.0,0.00018648,2]
[407926060,1772919041306,-1247.90739004,0.00018661,2]
[407926061,1772919041317,-477.12,0.00018788,2]
[407926062,1772919041327,-7641.90928448,0.00018903,2]
[407926063,1772919041338,-445.4,0.00018921,2]
[407926064,1772919041349,-570.0,0.00018924,2]
[407926065,1772919041360,-11229.28857111,0.00018936,2]
[407926066,1772919041369,-7363.41205091,0.00018951,2]
[407926067,1772919041385,-5000.0,0.00018951,2]
[407926068,1772919041395,-537.45,0.00018954,2]
[407926069,1772919041407,-151.0,0.00018954,2]
[407926070,1772919041417,-209.40437685,0.00018954,2]
[407926071,1772919041431,-721.12765535,0.00018954,2]